Workbook

Sheet RewardItemConfig
B1: Id | C1: ItemId | D1: Chance | E1: GrowChance | F1: RandomMin | G1: RandomMax | H1: Addition | I1: ChanceAddition | J1: Info | K1: NoUse1 | L1: NoUse2 | M1: NoUse3
B2: int | C2: int | D2: int | E2: float | F2: int | G2: int | H2: mut,int#int,1 | I2: mut,int#int,1 | J2: string | K2: string | L2: string | M2: string
B3: 4 | C3: 4 | D3: 4 | E3: 4 | F3: 4 | G3: 4 | H3: 4 | I3: 4 | J3: 0 | K3: 0 | L3: 0 | M3: 0
B4: 奖励id | C4: 奖励内容 | D4: 获取概率 | E4: 成长概率 针对特殊处理，如果不获取，则获取概率增加 | F4: 获取数量最小值 | G4: 获取数量最大值 | H4: 奖励受条件影响增长 (类型#参数) | I4: 权重受条件影响增长 (类型#参数1#参数2) | J4: 备注 物品名称 | K4: 备注 | L4: 备注 | M4: 校验
A5: 默认值 | B5: 0 | C5: 0 | D5: 0 | E5: 1 | F5: 0 | G5: 0
A6: 正确性校对
A7: 校对值
B8: 20 | C8: 43 | D8: 62 | E8: 1 | F8: 1 | G8: 1 | J8: 试炼-次元炸弹
B9: 21 | C9: 31 | D9: 875 | E9: 1 | F9: 0 | G9: 0 | J9: 试炼_回春散_空组
B10: 22 | C10: 31 | D10: 63 | E10: 1 | F10: 1 | G10: 1 | J10: 试炼_回春散
B11: 23 | C11: 16 | D11: 8 | E11: 1 | F11: 5 | G11: 5 | J11: 试炼-钻石
B12: 24 | C12: 4 | D12: 20 | E12: 1 | F12: 10 | G12: 10 | J12: 试炼-突破石
B13: 25 | C13: 16 | D13: 92 | E13: 1 | F13: 0 | G13: 0 | J13: 试炼-钻石-空组
B14: 26 | C14: 4 | D14: 80 | E14: 1 | F14: 0 | G14: 0 | J14: 试炼-突破石-空组
B15: 27 | C15: 14 | D15: 5 | E15: 1 | F15: 500000 | G15: 500000 | J15: 试炼-福利-金币
B16: 28 | C16: 43 | D16: 5 | E16: 1 | F16: 1 | G16: 1 | J16: 试炼-福利-炸弹人
B17: 29 | C17: 71 | D17: 88 | E17: 1 | F17: 1 | G17: 1 | J17: 远古妖魂宝箱
B18: 30 | C18: 72 | D18: 2 | E18: 1 | F18: 1 | G18: 1 | J18: 不朽妖魂宝箱
B19: 78 | C19: 4 | D19: 100 | E19: 1 | F19: 2 | G19: 2 | J19: 1星角色分解 | K19: 经验
B20: 79 | C20: 4 | D20: 100 | E20: 1 | F20: 5 | G20: 5 | J20: 2星角色分解 | K20: 经验
B21: 80 | C21: 4 | D21: 100 | E21: 1 | F21: 10 | G21: 10 | J21: 3星角色分解 | K21: 经验
B22: 81 | C22: 4 | D22: 100 | E22: 1 | F22: 25 | G22: 25 | J22: 4星角色分解 | K22: 经验
B23: 82 | C23: 4 | D23: 100 | E23: 1 | F23: 250 | G23: 250 | J23: 5星角色分解 | K23: 经验
B24: 83 | C24: 3 | D24: 100 | E24: 1 | F24: 100 | G24: 100 | J24: 1星角色分解 | K24: 丹
B25: 84 | C25: 3 | D25: 100 | E25: 1 | F25: 200 | G25: 200 | J25: 2星角色分解 | K25: 丹
B26: 85 | C26: 3 | D26: 100 | E26: 1 | F26: 500 | G26: 500 | J26: 3星角色分解 | K26: 丹
B27: 86 | C27: 3 | D27: 100 | E27: 1 | F27: 1000 | G27: 1000 | J27: 4星角色分解 | K27: 丹
B28: 87 | C28: 3 | D28: 100 | E28: 1 | F28: 5000 | G28: 5000 | J28: 5星角色分解 | K28: 丹
B29: 88 | C29: 26 | D29: 100 | E29: 1 | F29: 0 | G29: 0 | J29: 1星角色分解 | K29: 将魂
B30: 89 | C30: 26 | D30: 100 | E30: 1 | F30: 0 | G30: 0 | J30: 2星角色分解 | K30: 将魂
B31: 90 | C31: 26 | D31: 100 | E31: 1 | F31: 10 | G31: 10 | J31: 3星角色分解 | K31: 将魂
B32: 91 | C32: 26 | D32: 100 | E32: 1 | F32: 25 | G32: 25 | J32: 4星角色分解 | K32: 将魂
B33: 92 | C33: 26 | D33: 100 | E33: 1 | F33: 250 | G33: 250 | J33: 5星角色分解 | K33: 将魂
B34: 101 | C34: 25 | D34: 100 | E34: 1 | F34: 10 | G34: 10 | J34: 勇气之证 | K34: 英雄副本勋章*10
B35: 111 | C35: 6001 | D35: 100 | E35: 1 | F35: 1 | G35: 1 | J35: 刀劳鬼的魔铃妖魂。 | K35: 111#112#113
B36: 112 | C36: 6002 | D36: 100 | E36: 1 | F36: 1 | G36: 1 | J36: 刀劳鬼的牛魔妖魂。
B37: 113 | C37: 6003 | D37: 0 | E37: 1 | F37: 1 | G37: 1 | J37: 刀劳鬼的破狼刃妖魂。
B38: 114 | C38: 6004 | D38: 0 | E38: 1 | F38: 1 | G38: 1 | J38: 蒸笼仔的叶青妖魂。 | K38: 114#115#116
B39: 115 | C39: 6005 | D39: 0 | E39: 1 | F39: 1 | G39: 1 | J39: 蒸笼仔的饕餮妖魂。
B40: 116 | C40: 6006 | D40: 0 | E40: 1 | F40: 1 | G40: 1 | J40: 蒸笼仔的嗜魂虎妖魂。
B41: 117 | C41: 6007 | D41: 0 | E41: 1 | F41: 1 | G41: 1 | J41: 横公的散财妖魂。 | K41: 117#118#119
B42: 118 | C42: 6008 | D42: 0 | E42: 1 | F42: 1 | G42: 1 | J42: 横公的狐云妖魂。
B43: 119 | C43: 6009 | D43: 0 | E43: 1 | F43: 1 | G43: 1 | J43: 横公的鳞波甲妖魂。
B44: 120 | C44: 6010 | D44: 100 | E44: 1 | F44: 1 | G44: 1 | J44: 拘魂姬的触魔妖魂。 | K44: 120#121#122
B45: 121 | C45: 6011 | D45: 100 | E45: 1 | F45: 1 | G45: 1 | J45: 拘魂姬的回音妖魂。
B46: 122 | C46: 6012 | D46: 100 | E46: 1 | F46: 1 | G46: 1 | J46: 拘魂姬的镜心玉笛妖魂。
B47: 123 | C47: 6013 | D47: 100 | E47: 1 | F47: 1 | G47: 1 | J47: 火鼠的不尽木妖魂。 | K47: 123#124#125#126
B48: 124 | C48: 6014 | D48: 100 | E48: 1 | F48: 1 | G48: 1 | J48: 火鼠的灼炎妖魂。
B49: 125 | C49: 6015 | D49: 100 | E49: 1 | F49: 1 | G49: 1 | J49: 火鼠的火浣纹妖魂。
B50: 126 | C50: 6016 | D50: 100 | E50: 1 | F50: 1 | G50: 1 | J50: 火鼠的赤瞳妖魂。
B51: 127 | C51: 6017 | D51: 100 | E51: 1 | F51: 1 | G51: 1 | J51: 拦面叟的飞云妖魂。 | K51: 127#128#129#130
B52: 128 | C52: 6018 | D52: 100 | E52: 1 | F52: 1 | G52: 1 | J52: 拦面叟的无善念珠妖魂。
B53: 129 | C53: 6019 | D53: 100 | E53: 1 | F53: 1 | G53: 1 | J53: 拦面叟的非雾妖魂。
B54: 130 | C54: 6020 | D54: 100 | E54: 1 | F54: 1 | G54: 1 | J54: 拦面叟的流苏妖魂。
B55: 131 | C55: 6021 | D55: 100 | E55: 1 | F55: 1 | G55: 1 | J55: 孙龙的锋刃妖魂。 | K55: 131#132#133#134
B56: 132 | C56: 6022 | D56: 100 | E56: 1 | F56: 1 | G56: 1 | J56: 孙龙的狂刀妖魂。
B57: 133 | C57: 6023 | D57: 100 | E57: 1 | F57: 1 | G57: 1 | J57: 孙龙的幽芒妖魂。
B58: 134 | C58: 6024 | D58: 100 | E58: 1 | F58: 1 | G58: 1 | J58: 孙龙的不仁妖魂。
B59: 135 | C59: 6025 | D59: 100 | E59: 1 | F59: 1 | G59: 1 | J59: 陌刀的霸刀妖魂。 | K59: 135#136#137#138
B60: 136 | C60: 6026 | D60: 100 | E60: 1 | F60: 1 | G60: 1 | J60: 陌刀的铁甲妖魂。
B61: 137 | C61: 6027 | D61: 100 | E61: 1 | F61: 1 | G61: 1 | J61: 陌刀的魔尊妖魂。
B62: 138 | C62: 6028 | D62: 100 | E62: 1 | F62: 1 | G62: 1 | J62: 陌刀的血锈妖魂。
B63: 139 | C63: 6029 | D63: 100 | E63: 1 | F63: 1 | G63: 1 | J63: 风狸的瞳玉妖魂。 | K63: 139#140#141#142
B64: 140 | C64: 6030 | D64: 100 | E64: 1 | F64: 1 | G64: 1 | J64: 风狸的风行妖魂。
B65: 141 | C65: 6031 | D65: 100 | E65: 1 | F65: 1 | G65: 1 | J65: 风狸的铁骨妖魂。
B66: 142 | C66: 6032 | D66: 100 | E66: 1 | F66: 1 | G66: 1 | J66: 风狸的伤药葫芦妖魂。
B67: 143 | C67: 6033 | D67: 100 | E67: 1 | F67: 1 | G67: 1 | J67: 天麟的天谴妖魂。 | K67: 143#144#145#146
B68: 144 | C68: 6034 | D68: 100 | E68: 1 | F68: 1 | G68: 1 | J68: 天麟的紫霄妖魂。
B69: 145 | C69: 6035 | D69: 100 | E69: 1 | F69: 1 | G69: 1 | J69: 天麟的灵尊妖魂。
B70: 146 | C70: 6036 | D70: 100 | E70: 1 | F70: 1 | G70: 1 | J70: 天麟的圣魂妖魂。
B71: 300 | C71: 16 | D71: 100 | E71: 1 | F71: 300 | G71: 300 | J71: 魂晶 | K71: 测试服魂晶328发放
B72: 301 | C72: 19 | D72: 100 | E72: 1 | F72: 1 | G72: 1 | J72: 聚灵神戒 | K72: 测试服聚灵神戒10发放
B73: 302 | C73: 20 | D73: 100 | E73: 1 | F73: 1 | G73: 1 | J73: 元素神戒 | K73: 测试服元素神戒10发放
B74: 303 | C74: 16 | D74: 100 | E74: 1 | F74: 500 | G74: 500 | J74: 妖晶 | K74: 测试服妖晶1000发放
B75: 304 | C75: 20 | D75: 100 | E75: 1 | F75: 1 | G75: 1 | J75: 聚灵神戒 | K75: 手机绑定聚灵神戒
B76: 305 | C76: 14 | D76: 100 | E76: 1 | F76: 300000 | G76: 300000 | J76: 妖晶 | K76: 手机绑定妖晶
B77: 310 | C77: 68 | D77: 100 | E77: 1 | F77: 0 | G77: 0 | J77: 解锁进阶奖励 | K77: 孙龙的宝藏
B78: 311 | C78: 68 | D78: 100 | E78: 1 | F78: 200 | G78: 200 | J78: 解锁每日积分包 | K78: 孙龙的宝藏
B79: 312 | C79: 19 | D79: 50 | E79: 1 | F79: 2 | G79: 2 | J79: 聚灵神符 | K79: 聚灵神符礼盒
B80: 313 | C80: 19 | D80: 30 | E80: 1 | F80: 3 | G80: 3 | J80: 聚灵神符 | K80: 聚灵神符礼盒
B81: 314 | C81: 19 | D81: 20 | E81: 1 | F81: 5 | G81: 5 | J81: 聚灵神符 | K81: 聚灵神符礼盒
B82: 315 | C82: 19 | D82: 60 | E82: 1 | F82: 2 | G82: 2 | J82: 聚灵神符 | K82: 元素英才礼盒
B83: 316 | C83: 19 | D83: 30 | E83: 1 | F83: 5 | G83: 5 | J83: 聚灵神符 | K83: 元素英才礼盒
B84: 317 | C84: 20 | D84: 10 | E84: 1 | F84: 1 | G84: 1 | J84: 元素神符 | K84: 元素英才礼盒
B85: 491 | C85: 16 | D85: 100 | E85: 1 | F85: 2 | G85: 2 | J85: 简单关卡首通妖晶
B86: 492 | C86: 16 | D86: 100 | E86: 1 | F86: 8 | G86: 8 | J86: 普通关卡首通妖晶
B87: 493 | C87: 16 | D87: 100 | E87: 1 | F87: 8 | G87: 8 | J87: 困难关卡首通妖晶
B88: 494 | C88: 16 | D88: 100 | E88: 1 | F88: 32 | G88: 32 | J88: 地狱关卡首通妖晶
B89: 495 | C89: 16 | D89: 100 | E89: 1 | F89: 32 | G89: 32 | J89: 噩梦关卡首通妖晶
B90: 514 | C90: 12001 | D90: 100 | E90: 1 | F90: 0 | G90: 0 | J90: 3星随机碎片 | K90: 3星随机碎片
B91: 515 | C91: 12001 | D91: 11900 | E91: 1 | F91: 0 | G91: 0 | J91: 3星随机碎片-空组 | K91: 3星随机碎片-空组
B92: 516 | C92: 12012 | D92: 100 | E92: 1 | F92: 0 | G92: 0 | J92: 4星随机碎片 | K92: 4星随机碎片
B93: 517 | C93: 12012 | D93: 11900 | E93: 1 | F93: 0 | G93: 0 | J93: 4星随机碎片-空组 | K93: 4星随机碎片-空组
B94: 601 | C94: 14 | D94: 100 | E94: 1 | F94: 4500 | G94: 5500 | J94: 公会boss固定金币
B95: 602 | C95: 14 | D95: 100 | E95: 1 | F95: 9500 | G95: 10500 | J95: 公会boss固定金币
B96: 603 | C96: 14 | D96: 100 | E96: 1 | F96: 14500 | G96: 15500 | J96: 公会boss固定金币
B97: 604 | C97: 14 | D97: 100 | E97: 1 | F97: 19500 | G97: 20500 | J97: 公会boss固定金币
B98: 605 | C98: 14 | D98: 100 | E98: 1 | F98: 24500 | G98: 25500 | J98: 公会boss固定金币
B99: 606 | C99: 14 | D99: 100 | E99: 1 | F99: 29500 | G99: 30500 | J99: 公会boss固定金币
B100: 607 | C100: 14 | D100: 100 | E100: 1 | F100: 34500 | G100: 35500 | J100: 公会boss固定金币
B101: 608 | C101: 14 | D101: 100 | E101: 1 | F101: 39500 | G101: 40500 | J101: 公会boss固定金币
B102: 609 | C102: 14 | D102: 100 | E102: 1 | F102: 44500 | G102: 45500 | J102: 公会boss固定金币
B103: 610 | C103: 14 | D103: 100 | E103: 1 | F103: 49500 | G103: 50500 | J103: 公会boss固定金币
B104: 611 | C104: 14 | D104: 100 | E104: 1 | F104: 54500 | G104: 55500 | J104: 公会boss固定金币
B105: 612 | C105: 14 | D105: 100 | E105: 1 | F105: 59500 | G105: 60500 | J105: 公会boss固定金币
B106: 613 | C106: 14 | D106: 100 | E106: 1 | F106: 64500 | G106: 65500 | J106: 公会boss固定金币
B107: 614 | C107: 14 | D107: 100 | E107: 1 | F107: 69500 | G107: 70500 | J107: 公会boss固定金币
B108: 615 | C108: 14 | D108: 100 | E108: 1 | F108: 74500 | G108: 75500 | J108: 公会boss固定金币
B109: 616 | C109: 14 | D109: 100 | E109: 1 | F109: 79500 | G109: 80500 | J109: 公会boss固定金币
B110: 617 | C110: 14 | D110: 100 | E110: 1 | F110: 84500 | G110: 85500 | J110: 公会boss固定金币
B111: 618 | C111: 14 | D111: 100 | E111: 1 | F111: 89500 | G111: 90500 | J111: 公会boss固定金币
B112: 619 | C112: 14 | D112: 100 | E112: 1 | F112: 94500 | G112: 95500 | J112: 公会boss固定金币
B113: 620 | C113: 14 | D113: 100 | E113: 1 | F113: 99500 | G113: 100500 | J113: 公会boss固定金币
B114: 651 | C114: 65 | D114: 100 | E114: 1 | F114: 5 | G114: 5 | J114: 公会boss固定帮贡
B115: 652 | C115: 65 | D115: 100 | E115: 1 | F115: 5 | G115: 5 | J115: 公会boss固定帮贡
B116: 653 | C116: 65 | D116: 100 | E116: 1 | F116: 5 | G116: 5 | J116: 公会boss固定帮贡
B117: 654 | C117: 65 | D117: 100 | E117: 1 | F117: 5 | G117: 5 | J117: 公会boss固定帮贡
B118: 655 | C118: 65 | D118: 100 | E118: 1 | F118: 5 | G118: 5 | J118: 公会boss固定帮贡
B119: 656 | C119: 65 | D119: 100 | E119: 1 | F119: 5 | G119: 5 | J119: 公会boss固定帮贡
B120: 657 | C120: 65 | D120: 100 | E120: 1 | F120: 5 | G120: 5 | J120: 公会boss固定帮贡
B121: 658 | C121: 65 | D121: 100 | E121: 1 | F121: 5 | G121: 5 | J121: 公会boss固定帮贡
B122: 659 | C122: 65 | D122: 100 | E122: 1 | F122: 5 | G122: 5 | J122: 公会boss固定帮贡
B123: 660 | C123: 65 | D123: 100 | E123: 1 | F123: 5 | G123: 5 | J123: 公会boss固定帮贡
B124: 661 | C124: 65 | D124: 100 | E124: 1 | F124: 5 | G124: 5 | J124: 公会boss固定帮贡
B125: 662 | C125: 65 | D125: 100 | E125: 1 | F125: 5 | G125: 5 | J125: 公会boss固定帮贡
B126: 663 | C126: 65 | D126: 100 | E126: 1 | F126: 5 | G126: 5 | J126: 公会boss固定帮贡
B127: 664 | C127: 65 | D127: 100 | E127: 1 | F127: 5 | G127: 5 | J127: 公会boss固定帮贡
B128: 665 | C128: 65 | D128: 100 | E128: 1 | F128: 5 | G128: 5 | J128: 公会boss固定帮贡
B129: 666 | C129: 65 | D129: 100 | E129: 1 | F129: 5 | G129: 5 | J129: 公会boss固定帮贡
B130: 667 | C130: 65 | D130: 100 | E130: 1 | F130: 5 | G130: 5 | J130: 公会boss固定帮贡
B131: 668 | C131: 65 | D131: 100 | E131: 1 | F131: 5 | G131: 5 | J131: 公会boss固定帮贡
B132: 669 | C132: 65 | D132: 100 | E132: 1 | F132: 5 | G132: 5 | J132: 公会boss固定帮贡
B133: 670 | C133: 65 | D133: 100 | E133: 1 | F133: 5 | G133: 5 | J133: 公会boss固定帮贡
B134: 701 | C134: 14 | D134: 700 | E134: 1 | F134: 0 | G134: 0 | J134: 公会boss随机奖励 | K134: 空组
B135: 702 | C135: 16 | D135: 100 | E135: 1 | F135: 25 | G135: 25 | J135: 公会boss随机奖励 | K135: 妖晶
B136: 703 | C136: 60 | D136: 50 | E136: 1 | F136: 1 | G136: 1 | J136: 公会boss随机奖励 | K136: 转盘券
B137: 704 | C137: 4 | D137: 150 | E137: 1 | F137: 25 | G137: 25 | J137: 公会boss随机奖励 | K137: 紫球
B138: 1001 | C138: 60001 | D138: 100 | E138: 1 | F138: 1 | G138: 1 | J138: 猎户大斧 | K138: 低档武卫绿色武器
B139: 1002 | C139: 60002 | D139: 100 | E139: 1 | F139: 1 | G139: 1 | J139: 兽骨大斧 | K139: 中档武卫绿色武器
B140: 1003 | C140: 60003 | D140: 0 | E140: 1 | F140: 0 | G140: 0 | J140: 坚固大斧 | K140: 高档武卫绿色武器
B141: 1004 | C141: 60004 | D141: 0 | E141: 1 | F141: 0 | G141: 0 | J141: 猎户短剑 | K141: 低档天罚绿色武器
B142: 1005 | C142: 60005 | D142: 0 | E142: 1 | F142: 0 | G142: 0 | J142: 兽骨短剑 | K142: 中档天罚绿色武器
B143: 1006 | C143: 60006 | D143: 0 | E143: 1 | F143: 0 | G143: 0 | J143: 坚固短剑 | K143: 高档天罚绿色武器
B144: 1007 | C144: 60007 | D144: 0 | E144: 1 | F144: 0 | G144: 0 | J144: 猎户法杖 | K144: 低档秘法绿色武器
B145: 1008 | C145: 60008 | D145: 0 | E145: 1 | F145: 0 | G145: 0 | J145: 兽骨法杖 | K145: 中档秘法绿色武器
B146: 1009 | C146: 60009 | D146: 0 | E146: 1 | F146: 0 | G146: 0 | J146: 坚固法杖 | K146: 高档秘法绿色武器
B147: 1010 | C147: 60010 | D147: 0 | E147: 1 | F147: 0 | G147: 0 | J147: 猎户战刀 | K147: 低档玄策绿色武器
B148: 1011 | C148: 60011 | D148: 0 | E148: 1 | F148: 0 | G148: 0 | J148: 兽骨战刀 | K148: 中档玄策绿色武器
B149: 1012 | C149: 60012 | D149: 0 | E149: 1 | F149: 0 | G149: 0 | J149: 坚固战刀 | K149: 高档玄策绿色武器
B150: 1013 | C150: 60013 | D150: 0 | E150: 1 | F150: 0 | G150: 0 | J150: 猎户铜铃 | K150: 低档生花绿色武器
B151: 1014 | C151: 60014 | D151: 0 | E151: 1 | F151: 0 | G151: 0 | J151: 兽骨铜铃 | K151: 中档生花绿色武器
B152: 1015 | C152: 60015 | D152: 0 | E152: 1 | F152: 0 | G152: 0 | J152: 坚固铜铃 | K152: 高档生花绿色武器
B153: 1016 | C153: 60016 | D153: 100 | E153: 1 | F153: 1 | G153: 1 | J153: 戍卫战甲 | K153: 低档通用绿色板甲
B154: 1017 | C154: 60017 | D154: 100 | E154: 1 | F154: 1 | G154: 1 | J154: 硬木战甲 | K154: 中档通用绿色板甲
B155: 1018 | C155: 60018 | D155: 0 | E155: 1 | F155: 0 | G155: 0 | J155: 黑铁战甲 | K155: 高档通用绿色板甲
B156: 1019 | C156: 60019 | D156: 0 | E156: 1 | F156: 0 | G156: 0 | J156: 兽皮软甲 | K156: 低档通用绿色布甲
B157: 1020 | C157: 60020 | D157: 0 | E157: 1 | F157: 0 | G157: 0 | J157: 坚固皮甲 | K157: 中档通用绿色布甲
B158: 1021 | C158: 60021 | D158: 0 | E158: 1 | F158: 0 | G158: 0 | J158: 游侠软甲 | K158: 高档通用绿色布甲
B159: 1022 | C159: 60022 | D159: 100 | E159: 1 | F159: 1 | G159: 1 | J159: 猎户草帽 | K159: 低档通用绿色头饰
B160: 1023 | C160: 60023 | D160: 100 | E160: 1 | F160: 1 | G160: 1 | J160: 兽皮兜帽 | K160: 中档通用绿色头饰
B161: 1024 | C161: 60024 | D161: 0 | E161: 1 | F161: 0 | G161: 0 | J161: 坚固头盔 | K161: 高档通用绿色头饰
B162: 1025 | C162: 60025 | D162: 100 | E162: 1 | F162: 1 | G162: 1 | J162: 猎户草鞋 | K162: 低档通用绿色鞋子
B163: 1026 | C163: 60026 | D163: 100 | E163: 1 | F163: 1 | G163: 1 | J163: 兽皮皮靴 | K163: 中档通用绿色鞋子
B164: 1027 | C164: 60027 | D164: 0 | E164: 1 | F164: 0 | G164: 0 | J164: 坚固布鞋 | K164: 高档通用绿色鞋子
B165: 1028 | C165: 60028 | D165: 0 | E165: 1 | F165: 0 | G165: 0 | J165: 猎户指环 | K165: 低档通用绿色戒指
B166: 1029 | C166: 60029 | D166: 0 | E166: 1 | F166: 0 | G166: 0 | J166: 兽皮指环 | K166: 中档通用绿色戒指
B167: 1030 | C167: 60030 | D167: 0 | E167: 1 | F167: 0 | G167: 0 | J167: 坚固手套 | K167: 高档通用绿色戒指
B168: 1031 | C168: 60031 | D168: 0 | E168: 1 | F168: 0 | G168: 0 | J168: 猎户皮带 | K168: 低档通用绿色腰带
B169: 1032 | C169: 60032 | D169: 0 | E169: 1 | F169: 0 | G169: 0 | J169: 兽皮束带 | K169: 中档通用绿色腰带
B170: 1033 | C170: 60033 | D170: 0 | E170: 1 | F170: 0 | G170: 0 | J170: 坚固腰带 | K170: 高档通用绿色腰带
B171: 1034 | C171: 60034 | D171: 100 | E171: 1 | F171: 1 | G171: 1 | J171: 乌木大斧 | K171: 低档武卫蓝色武器
B172: 1035 | C172: 60035 | D172: 100 | E172: 1 | F172: 1 | G172: 1 | J172: 陨铁大斧 | K172: 中档武卫蓝色武器
B173: 1036 | C173: 60036 | D173: 0 | E173: 1 | F173: 0 | G173: 0 | J173: 寒铜大斧 | K173: 高档武卫蓝色武器
B174: 1037 | C174: 60037 | D174: 0 | E174: 1 | F174: 0 | G174: 0 | J174: 乌木短剑 | K174: 低档天罚蓝色武器
B175: 1038 | C175: 60038 | D175: 0 | E175: 1 | F175: 0 | G175: 0 | J175: 陨铁短剑 | K175: 中档天罚蓝色武器
B176: 1039 | C176: 60039 | D176: 0 | E176: 1 | F176: 0 | G176: 0 | J176: 寒铜短剑 | K176: 高档天罚蓝色武器
B177: 1040 | C177: 60040 | D177: 0 | E177: 1 | F177: 0 | G177: 0 | J177: 乌木法杖 | K177: 低档秘法蓝色武器
B178: 1041 | C178: 60041 | D178: 0 | E178: 1 | F178: 0 | G178: 0 | J178: 陨铁法杖 | K178: 中档秘法蓝色武器
B179: 1042 | C179: 60042 | D179: 0 | E179: 1 | F179: 0 | G179: 0 | J179: 寒铜法杖 | K179: 高档秘法蓝色武器
B180: 1043 | C180: 60043 | D180: 0 | E180: 1 | F180: 0 | G180: 0 | J180: 光羽长剑 | K180: 低档玄策蓝色武器
B181: 1044 | C181: 60044 | D181: 0 | E181: 1 | F181: 0 | G181: 0 | J181: 破空长剑 | K181: 中档玄策蓝色武器
B182: 1045 | C182: 60045 | D182: 0 | E182: 1 | F182: 0 | G182: 0 | J182: 逐光长剑 | K182: 高档玄策蓝色武器
B183: 1046 | C183: 60046 | D183: 0 | E183: 1 | F183: 0 | G183: 0 | J183: 乌木法铃 | K183: 低档生花蓝色武器
B184: 1047 | C184: 60047 | D184: 0 | E184: 1 | F184: 0 | G184: 0 | J184: 陨铁法铃 | K184: 中档生花蓝色武器
B185: 1048 | C185: 60048 | D185: 0 | E185: 1 | F185: 0 | G185: 0 | J185: 寒铜法铃 | K185: 高档生花蓝色武器
B186: 1049 | C186: 60049 | D186: 100 | E186: 1 | F186: 1 | G186: 1 | J186: 乌木战甲 | K186: 低档通用蓝色板甲
B187: 1050 | C187: 60050 | D187: 100 | E187: 1 | F187: 1 | G187: 1 | J187: 陨铁战甲 | K187: 中档通用蓝色板甲
B188: 1051 | C188: 60051 | D188: 0 | E188: 1 | F188: 0 | G188: 0 | J188: 寒铜战甲 | K188: 高档通用蓝色板甲
B189: 1052 | C189: 60052 | D189: 0 | E189: 1 | F189: 0 | G189: 0 | J189: 墨玉战甲 | K189: 低档通用蓝色布甲
B190: 1053 | C190: 60053 | D190: 0 | E190: 1 | F190: 0 | G190: 0 | J190: 飞羽战甲 | K190: 中档通用蓝色布甲
B191: 1054 | C191: 60054 | D191: 0 | E191: 1 | F191: 0 | G191: 0 | J191: 青烟战甲 | K191: 高档通用蓝色布甲
B192: 1055 | C192: 60055 | D192: 100 | E192: 1 | F192: 1 | G192: 1 | J192: 乌木战盔 | K192: 低档通用蓝色头饰
B193: 1056 | C193: 60056 | D193: 100 | E193: 1 | F193: 1 | G193: 1 | J193: 陨铁战盔 | K193: 中档通用蓝色头饰
B194: 1057 | C194: 60057 | D194: 0 | E194: 1 | F194: 0 | G194: 0 | J194: 寒铜战盔 | K194: 高档通用蓝色头饰
B195: 1058 | C195: 60058 | D195: 100 | E195: 1 | F195: 1 | G195: 1 | J195: 乌木战靴 | K195: 低档通用蓝色鞋子
B196: 1059 | C196: 60059 | D196: 100 | E196: 1 | F196: 1 | G196: 1 | J196: 陨铁战靴 | K196: 中档通用蓝色鞋子
B197: 1060 | C197: 60060 | D197: 0 | E197: 1 | F197: 0 | G197: 0 | J197: 寒铜战靴 | K197: 高档通用蓝色鞋子
B198: 1061 | C198: 60061 | D198: 0 | E198: 1 | F198: 0 | G198: 0 | J198: 乌木戒指 | K198: 低档通用蓝色戒指
B199: 1062 | C199: 60062 | D199: 0 | E199: 1 | F199: 0 | G199: 0 | J199: 陨铁戒指 | K199: 中档通用蓝色戒指
B200: 1063 | C200: 60063 | D200: 0 | E200: 1 | F200: 0 | G200: 0 | J200: 寒铜戒指 | K200: 高档通用蓝色戒指
... 4300 more rows

Sheet Sheet1
O13: 特殊
O14: 天启战甲 | P14: 单副属性 | Q14: 紫-铠甲-双抗补全
O15: 遗迹战甲 | P15: 带附加技能
B17: 每件概率（*1000） | C17: 包含件数 | D17: 总概率
B18: 100 | C18: 78 | G18: 玩家vip | H18: 副本 | I18: 付费一定额度玩家等级 v5 | J18: 开启天数 | K18: 开启等级_V0 | L18: 开启等级_V15
B19: =INT(D19/C19*1000) -> 34 | C19: 29 | D19: 1 | F19: 绿色带副属性 | G19: 3 | H19: 1 | I19: 15 | J19: 1
B20: 50 | C20: 20 | D20: 1 | F20: 绿色装备带重铸等级 | G20: 3 | H20: 2 | I20: 20 | J20: 1 | O20: 紫色1-2属性装备
B21: 66 | C21: 15 | D21: 1 | F21: 绿色装备带特性 | G21: 3 | H21: 3 | I21: 26 | J21: 2 | O21: 紫色1-2属性戒指腰带
B22: 32 | C22: 25 | D22: 0.8 | F22: 蓝色0-1副属性 | G22: 3 | H22: 4 | I22: 31 | J22: 3 | N22: 72 | O22: 紫色2-3属性装备（无附加技能）
B23: 34 | C23: 23 | D23: 0.8 | F23: 蓝色1-2副属性 | G23: 4 | H23: 5 | I23: 35 | J23: 5 | N23: 11 | O23: 紫色2-3戒指
B24: 32 | C24: 25 | D24: 0.8 | F24: 蓝色带重铸等级装备 | G24: 5 | H24: 6 | I24: 38 | J24: 7 | N24: 11 | O24: 紫色2-3腰带
B25: 40 | C25: 20 | D25: 0.8 | F25: 蓝色带特性装备 | G25: 5 | H25: 7 | I25: 42 | J25: 9 | N25: 31 | O25: 紫色2-3头饰铠甲鞋子
B26: 8 | C26: 72 | D26: 0.6 | F26: 紫色普通装备 | G26: 5 | H26: 8 | I26: 44 | J26: 11 | N26: 15 | O26: 紫色3-3属性装备（武器）
F27: 紫色特性装备 | G27: 5 | H27: 9 | I27: 47 | J27: 13 | N27: 15 | O27: 紫色带重置等级武器（不可重铸）
B28: =INT(D28/C28*1000) -> 23 | C28: 26 | D28: 0.6 | E28: 分部位 | F28: 紫色重铸装备 | G28: 5 | H28: 10 | I28: 49 | J28: 15 | N28: 11 | O28: 紫色带附加技能装备
B29: =INT(D29/C29*1000) -> 54 | C29: 11 | D29: 0.6 | F29: 紫色装备-戒指 | G29: 5 | H29: 11 | I29: 51 | J29: 18
B30: =INT(D30/C30*1000) -> 54 | C30: 11 | D30: 0.6 | F30: 紫色装备-腰带 | G30: 6 | H30: 12 | I30: 54 | J30: 21
G31: 6 | H31: 13 | I31: 55 | J31: 24
G32: 6 | H32: 14 | I32: 57 | J32: 27 | N32: 6 | O32: 橙色0-0-不可重铸
G33: 6 | H33: 15 | I33: 59 | J33: 30 | N33: 7 | O33: 橙色0-0-可重铸
O34: 橙色1-2副属性装备
B35: =INT(D35/C35*1000) -> 5 | C35: 51 | D35: 0.276 | F35: 橙色2-4装备 | O35: 橙色1-2副属性戒指腰带
B36: 19 | C36: 14 | D36: 0.276 | F36: 橙色2-4戒指、腰带 | N36: 25 | O36: 橙色2-4副属性-武器（可重铸）
B37: 11 | C37: 25 | D37: 0.276 | F37: 橙色3-3装备 | N37: 20 | O37: 橙色2-4副属性-铠甲头饰鞋子（可重铸）
B38: 14 | C38: 19 | D38: 0.276 | F38: 橙色4-4装备 | N38: 10 | O38: 橙色2-4副属性-腰带（可重铸）
B39: 13 | C39: 20 | D39: 0.276 | E39: 分部位 | F39: 橙色重铸装备 | N39: 10 | O39: 橙色2-4副属性-戒指（可重铸）
B40: 8 | C40: 34 | D40: 0.276 | F40: 橙色特性装备 | O40: 橙色3-3副属性-武器（可重铸）
O41: 橙色3-3副属性-戒指腰带（可重铸）
N42: 4 | O42: 橙色4-4副属性-戒指腰带（可重铸）
N43: 15 | O43: 橙色4-4副属性-武器（可重铸）
N44: 12 | O44: 橙色带附加技能（无副属性）
N45: 20 | O45: 橙色带重置等级武器（不可重铸）
N46: 22 | O46: 橙色带副属性+附加技能
D63: 911409 | E63: # | F63: =D63&E63 -> 911409# | G63: =F63&F64&F65&F66&F67&F68&F69&F70&F71&F72&F73&F74&F75&F76&F77&F78&F79 -> 911409#911410#911411#911412#911413#911414#911415#911416#911417#911418#911419#911420#911421#911422#911423#911424#911425#
D64: 911410 | E64: # | F64: =D64&E64 -> 911410# | G64: 911409#911410#911411#911412#911413#911414#911415#911416#911417#911418#911419#911420#911421#911422#911423#911424#911425
D65: 911411 | E65: # | F65: 911411#
D66: 911412 | E66: # | F66: 911412#
D67: 911413 | E67: # | F67: 911413#
D68: 911414 | E68: # | F68: 911414#
D69: 911415 | E69: # | F69: 911415#
D70: 911416 | E70: # | F70: 911416#
D71: 911417 | E71: # | F71: 911417#
D72: 911418 | E72: # | F72: 911418#
D73: 911419 | E73: # | F73: 911419#
D74: 911420 | E74: # | F74: 911420#
D75: 911421 | E75: # | F75: 911421#
D76: 911422 | E76: # | F76: 911422#
D77: 911423 | E77: # | F77: 911423#
D78: 911424 | E78: # | F78: 911424#
D79: 911425 | E79: # | F79: 911425#
D528: =

Sheet 铁矿石
O3: 天数 | P3: 爬塔层数 | Q3: 每日爬塔铁矿石
O4: 1 | P4: 1 | Q4: 2.306313758 | R4: =INT(Q4) -> 2
O5: 1 | P5: 2 | Q5: 4.612627516 | R5: =INT(Q5) -> 4
O6: 1 | P6: 3 | Q6: 6.918941274 | R6: 6
O7: 1 | P7: 4 | Q7: 9.225255032 | R7: 9
O8: 1 | P8: 5 | Q8: 11.53156879 | R8: 11
C9: 铁矿石 | D9: 秘境挂机 | O9: 2 | P9: 6 | Q9: 13.83788255 | R9: 13
C10: 挂机等级 | D10: 绿装/min | E10: 绿装/day | F10: 蓝装/min | G10: 蓝装/day | H10: 紫装/min | I10: 紫装/day | J10: 橙装/min | K10: 橙装/day | L10: 铁矿石/day | M10: 铁矿石/day | O10: 2 | P10: 7 | Q10: 16.14419631 | R10: 16
C11: 11 | D11: 0.00019 | E11: 0.2736 | F11: 0.0001 | G11: 0.144 | H11: 0 | I11: 0 | J11: 0 | K11: 0 | L11: 11.232 | M11: 11 | O11: 2 | P11: 8 | Q11: 18.45051006 | R11: 18
C12: 12 | D12: 0.00025 | E12: 0.36 | F12: 0.000245 | G12: 0.3528 | H12: 0 | I12: 0 | J12: 0 | K12: 0 | L12: 21.312 | M12: 21 | O12: 2 | P12: 9 | Q12: 20.75682382 | R12: 20
C13: 13 | D13: 0.00025 | E13: 0.36 | F13: 0.000245 | G13: 0.3528 | H13: 0 | I13: 0 | J13: 0 | K13: 0 | L13: 21.312 | M13: 21 | O13: 3 | P13: 10 | Q13: 23.06313758 | R13: 23
C14: 14 | D14: 0.00035 | E14: 0.504 | F14: 0.000345 | G14: 0.4968 | H14: 1.7e-05 | I14: 0.02448 | J14: 0 | K14: 0 | L14: 32.1552 | M14: 32 | O14: 3 | P14: 11 | Q14: 25.36945134 | R14: 25
C15: 15 | D15: 0.00035 | E15: 0.504 | F15: 0.000345 | G15: 0.4968 | H15: 1.7e-05 | I15: 0.02448 | J15: 0 | K15: 0 | L15: 32.1552 | M15: 32 | O15: 4 | P15: 12 | Q15: 27.6757651 | R15: 27
C16: 16 | D16: 0.00045 | E16: 0.648 | F16: 0.000445 | G16: 0.6408 | H16: 3.4e-05 | I16: 0.04896 | J16: 0 | K16: 0 | L16: 42.9984 | M16: 43 | O16: 4 | P16: 13 | Q16: 29.98207885 | R16: 29
C17: 17 | D17: 0.00045 | E17: 0.648 | F17: 0.000445 | G17: 0.6408 | H17: 3.4e-05 | I17: 0.04896 | J17: 0 | K17: 0 | L17: 42.9984 | M17: 43 | O17: 5 | P17: 14 | Q17: 32.28839261 | R17: 32
C18: 18 | D18: 0.00055 | E18: 0.792 | F18: 0.000545 | G18: 0.7848 | H18: 4e-05 | I18: 0.0576 | J18: 3e-06 | K18: 0.00432 | L18: 53.4528 | M18: 53 | O18: 6 | P18: 15 | Q18: 34.59470637 | R18: 34
C19: 21 | D19: 0.00055 | E19: 0.792 | F19: 0.000545 | G19: 0.7848 | H19: 4e-05 | I19: 0.0576 | J19: 3e-06 | K19: 0.00432 | L19: 53.4528 | M19: 53 | O19: 7 | P19: 16 | Q19: 36.90102013 | R19: 36
C20: 22 | D20: 0.00065 | E20: 0.936 | F20: 0.000645 | G20: 0.9288 | H20: 5e-05 | I20: 0.072 | J20: 5e-06 | K20: 0.0072 | L20: 64.08 | M20: 64 | O20: 8 | P20: 17 | Q20: 39.20733388 | R20: 39
C21: 23 | D21: 0.00065 | E21: 0.936 | F21: 0.000645 | G21: 0.9288 | H21: 5e-05 | I21: 0.072 | J21: 5e-06 | K21: 0.0072 | L21: 64.08 | M21: 64 | O21: 9 | P21: 18 | Q21: 41.51364764 | R21: 41
C22: 24 | D22: 0.00075 | E22: 1.08 | F22: 0.000745 | G22: 1.0728 | H22: 5.8e-05 | I22: 0.08352 | J22: 9e-06 | K22: 0.01296 | L22: 75.1392 | M22: 75 | O22: 10 | P22: 19 | Q22: 43.8199614 | R22: 43
C23: 25 | D23: 0.00075 | E23: 1.08 | F23: 0.000745 | G23: 1.0728 | H23: 5.8e-05 | I23: 0.08352 | J23: 9e-06 | K23: 0.01296 | L23: 75.1392 | M23: 75 | O23: 11 | P23: 20 | Q23: 46.12627516 | R23: 46
C24: 26 | D24: 0.00085 | E24: 1.224 | F24: 0.000845 | G24: 1.2168 | H24: 6.4e-05 | I24: 0.09216 | J24: 1.1e-05 | K24: 0.01584 | L24: 85.248 | M24: 85 | O24: 12 | P24: 21 | Q24: 48.43258892 | R24: 48
C25: 27 | D25: 0.00085 | E25: 1.224 | F25: 0.000845 | G25: 1.2168 | H25: 6.4e-05 | I25: 0.09216 | J25: 1.1e-05 | K25: 0.01584 | L25: 85.248 | M25: 85 | O25: 13 | P25: 22 | Q25: 50.73890267 | R25: 50
C26: 28 | D26: 0.00095 | E26: 1.368 | F26: 0.000945 | G26: 1.3608 | H26: 7.6e-05 | I26: 0.10944 | J26: 1.3e-05 | K26: 0.01872 | L26: 96.1344 | M26: 96 | O26: 14 | P26: 23 | Q26: 53.04521643 | R26: 53
C27: 31 | D27: 0.00095 | E27: 1.368 | F27: 0.000945 | G27: 1.3608 | H27: 7.6e-05 | I27: 0.10944 | J27: 1.3e-05 | K27: 0.01872 | L27: 96.1344 | M27: 96 | O27: 15 | P27: 24 | Q27: 55.35153019 | R27: 55
C28: 32 | D28: 0.00105 | E28: 1.512 | F28: 0.001045 | G28: 1.5048 | H28: 8.8e-05 | I28: 0.12672 | J28: 1.6e-05 | K28: 0.02304 | L28: 107.3664 | M28: 107 | O28: 16 | P28: 25 | Q28: 57.65784395 | R28: 57
C29: 33 | D29: 0.00105 | E29: 1.512 | F29: 0.001045 | G29: 1.5048 | H29: 8.8e-05 | I29: 0.12672 | J29: 1.6e-05 | K29: 0.02304 | L29: 107.3664 | M29: 107 | O29: 17 | P29: 26 | Q29: 59.96415771 | R29: 59
C30: 34 | D30: 0.00115 | E30: 1.656 | F30: 0.001145 | G30: 1.6488 | H30: 8.8e-05 | I30: 0.12672 | J30: 1.9e-05 | K30: 0.02736 | L30: 117.0432 | M30: 117 | O30: 18 | P30: 27 | Q30: 62.27047146 | R30: 62
C31: 35 | D31: 0.00115 | E31: 1.656 | F31: 0.001145 | G31: 1.6488 | H31: 8.8e-05 | I31: 0.12672 | J31: 1.9e-05 | K31: 0.02736 | L31: 117.0432 | M31: 117 | O31: 19 | P31: 28 | Q31: 64.57678522 | R31: 64
C32: 36 | D32: 0.00125 | E32: 1.8 | F32: 0.001225 | G32: 1.764 | H32: 0.0001 | I32: 0.144 | J32: 2.5e-05 | K32: 0.036 | L32: 128.16 | M32: 128 | O32: 20 | P32: 29 | Q32: 66.88309898 | R32: 66
C33: 37 | D33: 0.00125 | E33: 1.8 | F33: 0.001225 | G33: 1.764 | H33: 0.0001 | I33: 0.144 | J33: 2.5e-05 | K33: 0.036 | L33: 128.16 | M33: 128 | O33: 21 | P33: 30 | Q33: 69.18941274 | R33: 69
C34: 38 | D34: 0.00125 | E34: 1.8 | F34: 0.001225 | G34: 1.764 | H34: 0.0001 | I34: 0.144 | J34: 2.5e-05 | K34: 0.036 | L34: 128.16 | M34: 128 | O34: 22 | P34: 30 | Q34: 69.18941274 | R34: 69
O35: 23 | P35: =P33+1 -> 31 | Q35: 71.4957265 | R35: 71
O36: 24 | P36: 31 | Q36: 71.4957265 | R36: 71
O37: 25 | P37: 32 | Q37: 73.80204025 | R37: =INT(Q37) -> 73
O38: 26 | P38: 32 | Q38: 73.80204025 | R38: 73
O39: 27 | P39: 33 | Q39: 76.10835401 | R39: 76
O40: 28 | P40: 33 | Q40: 76.10835401 | R40: 76
O41: 29 | P41: 34 | Q41: 78.41466777 | R41: 78
O42: 30 | P42: 34 | Q42: 78.41466777 | R42: 78
O43: 31 | P43: 35 | Q43: 80.72098153 | R43: 80
O44: 32 | P44: 35 | Q44: 80.72098153 | R44: 80
O45: 33 | P45: 36 | Q45: 83.02729529 | R45: 83
O46: 34 | P46: 36 | Q46: 83.02729529 | R46: 83
O47: 35 | P47: 37 | Q47: 85.33360904 | R47: 85
O48: 36 | P48: 37 | Q48: 85.33360904 | R48: 85
O49: 37 | P49: 38 | Q49: 87.6399228 | R49: 87
O50: 38 | P50: 38 | Q50: 87.6399228 | R50: 87
O51: 39 | P51: 39 | Q51: 89.94623656 | R51: 89
O52: 40 | P52: 39 | Q52: 89.94623656 | R52: 89
O53: 41 | P53: 40 | Q53: 92.25255032 | R53: 92
O54: 42 | P54: 40 | Q54: 92.25255032 | R54: 92
O55: 43 | P55: 41 | Q55: 94.55886407 | R55: 94
O56: 44 | P56: 41 | Q56: 94.55886407 | R56: 94
O57: 45 | P57: 42 | Q57: 96.86517783 | R57: 96
O58: 46 | P58: 42 | Q58: 96.86517783 | R58: 96
O59: 47 | P59: 43 | Q59: 99.17149159 | R59: 99
O60: 48 | P60: 43 | Q60: 99.17149159 | R60: 99
O61: 49 | P61: 44 | Q61: 101.4778053 | R61: 101
O62: 50 | P62: 44 | Q62: 101.4778053 | R62: 101
O63: 51 | P63: 45 | Q63: 103.7841191 | R63: 103
O64: 52 | P64: 45 | Q64: 103.7841191 | R64: 103
O65: 53 | P65: =P64 -> 45 | Q65: 103.7841191 | R65: 103
O66: 54 | P66: =P63+1 -> 46 | Q66: 106.0904329 | R66: 106
O67: 55 | P67: 46 | Q67: 106.0904329 | R67: 106
O68: 56 | P68: 46 | Q68: 106.0904329 | R68: 106
O69: 57 | P69: 47 | Q69: 108.3967466 | R69: =INT(Q69) -> 108
O70: 58 | P70: 47 | Q70: 108.3967466 | R70: 108
O71: 59 | P71: 47 | Q71: 108.3967466 | R71: 108
O72: 60 | P72: 48 | Q72: 110.7030604 | R72: 110
O73: 61 | P73: 48 | Q73: 110.7030604 | R73: 110
O74: 62 | P74: 48 | Q74: 110.7030604 | R74: 110
O75: 63 | P75: 49 | Q75: 113.0093741 | R75: 113
O76: 64 | P76: 49 | Q76: 113.0093741 | R76: 113
O77: 65 | P77: 49 | Q77: 113.0093741 | R77: 113
O78: 66 | P78: 50 | Q78: 115.3156879 | R78: 115
O79: 67 | P79: 50 | Q79: 115.3156879 | R79: 115
O80: 68 | P80: 50 | Q80: 115.3156879 | R80: 115
O81: 69 | P81: 51 | Q81: 117.6220017 | R81: 117
O82: 70 | P82: 51 | Q82: 117.6220017 | R82: 117
O83: 71 | P83: 51 | Q83: 117.6220017 | R83: 117
O84: 72 | P84: 52 | Q84: 119.9283154 | R84: 119
O85: 73 | P85: 52 | Q85: 119.9283154 | R85: 119
O86: 74 | P86: 52 | Q86: 119.9283154 | R86: 119
O87: 75 | P87: 53 | Q87: 122.2346292 | R87: 122
O88: 76 | P88: 53 | Q88: 122.2346292 | R88: 122
O89: 77 | P89: 53 | Q89: 122.2346292 | R89: 122
O90: 78 | P90: 54 | Q90: 124.5409429 | R90: 124
O91: 79 | P91: 54 | Q91: 124.5409429 | R91: 124
O92: 80 | P92: 54 | Q92: 124.5409429 | R92: 124
O93: 81 | P93: 55 | Q93: 126.8472567 | R93: 126
O94: 82 | P94: 55 | Q94: 126.8472567 | R94: 126
O95: 83 | P95: 55 | Q95: 126.8472567 | R95: 126
O96: 84 | P96: 56 | Q96: 129.1535704 | R96: 129
O97: 85 | P97: 56 | Q97: 129.1535704 | R97: 129
O98: 86 | P98: 56 | Q98: 129.1535704 | R98: 129
O99: 87 | P99: 57 | Q99: 131.4598842 | R99: 131
O100: 88 | P100: 57 | Q100: 131.4598842 | R100: 131
O101: 89 | P101: 57 | Q101: 131.4598842 | R101: =INT(Q101) -> 131
O102: 90 | P102: 58 | Q102: 133.766198 | R102: 133
O103: 91 | P103: 58 | Q103: 133.766198 | R103: 133
O104: 92 | P104: 58 | Q104: 133.766198 | R104: 133
O105: 93 | P105: 59 | Q105: 136.0725117 | R105: 136
O106: 94 | P106: 59 | Q106: 136.0725117 | R106: 136
O107: 95 | P107: 59 | Q107: 136.0725117 | R107: 136
O108: 96 | P108: 60 | Q108: 138.3788255 | R108: 138
O109: 97 | P109: 60 | Q109: 138.3788255 | R109: 138
O110: 98 | P110: 60 | Q110: 138.3788255 | R110: 138
O111: 99 | P111: 61 | Q111: 140.6851392 | R111: 140
O112: 100 | P112: 61 | Q112: 140.6851392 | R112: 140
O113: 101 | P113: 61 | Q113: 140.6851392 | R113: 140
O114: 102 | P114: =P113 -> 61 | Q114: 140.6851392 | R114: 140
O115: 103 | P115: =P111+1 -> 62 | Q115: 142.991453 | R115: 142
O116: 104 | P116: 62 | Q116: 142.991453 | R116: 142
O117: 105 | P117: 62 | Q117: 142.991453 | R117: 142
O118: 106 | P118: 62 | Q118: 142.991453 | R118: 142
O119: 107 | P119: 63 | Q119: 145.2977667 | R119: 145
O120: 108 | P120: 63 | Q120: 145.2977667 | R120: 145
O121: 109 | P121: 63 | Q121: 145.2977667 | R121: 145
O122: 110 | P122: 63 | Q122: 145.2977667 | R122: 145
O123: 111 | P123: 64 | Q123: 147.6040805 | R123: 147
O124: 112 | P124: 64 | Q124: 147.6040805 | R124: 147
O125: 113 | P125: 64 | Q125: 147.6040805 | R125: 147
O126: 114 | P126: 64 | Q126: 147.6040805 | R126: 147
O127: 115 | P127: 65 | Q127: 149.9103943 | R127: 149
O128: 116 | P128: 65 | Q128: 149.9103943 | R128: 149
O129: 117 | P129: 65 | Q129: 149.9103943 | R129: 149
O130: 118 | P130: 65 | Q130: 149.9103943 | R130: 149
O131: 119 | P131: 66 | Q131: 152.216708 | R131: 152
O132: 120 | P132: 66 | Q132: 152.216708 | R132: 152
O133: 121 | P133: 66 | Q133: 152.216708 | R133: =INT(Q133) -> 152
O134: 122 | P134: 66 | Q134: 152.216708 | R134: 152
O135: 123 | P135: 67 | Q135: 154.5230218 | R135: 154
O136: 124 | P136: 67 | Q136: 154.5230218 | R136: 154
O137: 125 | P137: 67 | Q137: 154.5230218 | R137: 154
O138: 126 | P138: 67 | Q138: 154.5230218 | R138: 154
O139: 127 | P139: 68 | Q139: 156.8293355 | R139: 156
O140: 128 | P140: 68 | Q140: 156.8293355 | R140: 156
O141: 129 | P141: 68 | Q141: 156.8293355 | R141: 156
O142: 130 | P142: 68 | Q142: 156.8293355 | R142: 156
O143: 131 | P143: 69 | Q143: 159.1356493 | R143: 159
O144: 132 | P144: 69 | Q144: 159.1356493 | R144: 159
O145: 133 | P145: 69 | Q145: 159.1356493 | R145: 159
O146: 134 | P146: 69 | Q146: 159.1356493 | R146: 159
O147: 135 | P147: 70 | Q147: 161.4419631 | R147: 161
O148: 136 | P148: 70 | Q148: 161.4419631 | R148: 161
O149: 137 | P149: 70 | Q149: 161.4419631 | R149: 161
O150: 138 | P150: 70 | Q150: 161.4419631 | R150: 161
O151: 139 | P151: 71 | Q151: 163.7482768 | R151: 163
O152: 140 | P152: 71 | Q152: 163.7482768 | R152: 163
O153: 141 | P153: 71 | Q153: 163.7482768 | R153: 163
O154: 142 | P154: 71 | Q154: 163.7482768 | R154: 163
O155: 143 | P155: 72 | Q155: 166.0545906 | R155: 166
O156: 144 | P156: 72 | Q156: 166.0545906 | R156: 166
O157: 145 | P157: 72 | Q157: 166.0545906 | R157: 166
O158: 146 | P158: 72 | Q158: 166.0545906 | R158: 166
O159: 147 | P159: 73 | Q159: 168.3609043 | R159: 168
O160: 148 | P160: 73 | Q160: 168.3609043 | R160: 168
O161: 149 | P161: 73 | Q161: 168.3609043 | R161: 168
O162: 150 | P162: 73 | Q162: 168.3609043 | R162: 168
O163: 151 | P163: 74 | Q163: 170.6672181 | R163: 170
O164: 152 | P164: 74 | Q164: 170.6672181 | R164: 170
O165: 153 | P165: 74 | Q165: 170.6672181 | R165: =INT(Q165) -> 170
O166: 154 | P166: 74 | Q166: 170.6672181 | R166: 170
O167: 155 | P167: 75 | Q167: 172.9735318 | R167: 172
O168: 156 | P168: 75 | Q168: 172.9735318 | R168: 172
O169: 157 | P169: 75 | Q169: 172.9735318 | R169: 172
O170: 158 | P170: 75 | Q170: 172.9735318 | R170: 172
O171: 159 | P171: 76 | Q171: 175.2798456 | R171: 175
O172: 160 | P172: 76 | Q172: 175.2798456 | R172: 175
O173: 161 | P173: 76 | Q173: 175.2798456 | R173: 175
O174: 162 | P174: 76 | Q174: 175.2798456 | R174: 175
O175: 163 | P175: =P174 -> 76 | Q175: 175.2798456 | R175: 175
O176: 164 | P176: =P172+1 -> 77 | Q176: 177.5861594 | R176: 177
O177: 165 | P177: 77 | Q177: 177.5861594 | R177: 177
O178: 166 | P178: 77 | Q178: 177.5861594 | R178: 177
O179: 167 | P179: 77 | Q179: 177.5861594 | R179: 177
O180: 168 | P180: =P179 -> 77 | Q180: 177.5861594 | R180: 177
O181: 169 | P181: =P177+1 -> 78 | Q181: 179.8924731 | R181: 179
O182: 170 | P182: 78 | Q182: 179.8924731 | R182: 179
O183: 171 | P183: 78 | Q183: 179.8924731 | R183: 179
O184: 172 | P184: 78 | Q184: 179.8924731 | R184: 179
O185: 173 | P185: =P184 -> 78 | Q185: 179.8924731 | R185: 179
O186: 174 | P186: =P182+1 -> 79 | Q186: 182.1987869 | R186: 182
O187: 175 | P187: 79 | Q187: 182.1987869 | R187: 182
O188: 176 | P188: 79 | Q188: 182.1987869 | R188: 182
O189: 177 | P189: 79 | Q189: 182.1987869 | R189: 182
O190: 178 | P190: =P189 -> 79 | Q190: 182.1987869 | R190: 182
O191: 179 | P191: =P190 -> 79 | Q191: 182.1987869 | R191: 182
O192: 180 | P192: 80 | Q192: 184.5051006 | R192: 184

Sheet Sheet2
C1: 1350 | D1: 1001 | E1: 1004 | F1: 1007 | G1: 1010 | H1: 1013 | I1: 1016 | J1: 1022 | K1: 1025 | L1: 1028 | M1: 1031
C2: 1351 | D2: 1001 | E2: 1004 | F2: 1007 | G2: 1010 | H2: 1013 | I2: 1016 | J2: 1022 | K2: 1025 | L2: 1028 | M2: 1031
C3: 1352 | D3: 1001 | E3: 1004 | F3: 1007 | G3: 1010 | H3: 1013 | I3: 1016 | J3: 1022 | K3: 1025 | L3: 1028 | M3: 1031
C4: 1355 | D4: 1002 | E4: 1005 | F4: 1008 | G4: 1011 | H4: 1014 | I4: 1017 | J4: 1023 | K4: 1026 | L4: 1029 | M4: 1032
C5: 1356 | D5: 1002 | E5: 1005 | F5: 1008 | G5: 1011 | H5: 1014 | I5: 1017 | J5: 1023 | K5: 1026 | L5: 1029 | M5: 1032
C6: 1360 | D6: 1003 | E6: 1006 | F6: 1009 | G6: 1012 | H6: 1015 | I6: 1018 | J6: 1024 | K6: 1027 | L6: 1030 | M6: 1033
C7: 1361 | D7: 1003 | E7: 1006 | F7: 1009 | G7: 1012 | H7: 1015 | I7: 1018 | J7: 1024 | K7: 1027 | L7: 1030 | M7: 1033
C11: =VLOOKUP(C1,RewardItemConfig!$B$138:$J$469,9,FALSE) -> 0.035绿色1 | D11: =VLOOKUP(D1,RewardItemConfig!$B$138:$J$469,9,FALSE) -> 猎户大斧 | E11: =VLOOKUP(E1,RewardItemConfig!$B$138:$J$469,9,FALSE) -> 猎户短剑 | F11: =VLOOKUP(F1,RewardItemConfig!$B$138:$J$469,9,FALSE) -> 猎户法杖 | G11: =VLOOKUP(G1,RewardItemConfig!$B$138:$J$469,9,FALSE) -> 猎户战刀 | H11: =VLOOKUP(H1,RewardItemConfig!$B$138:$J$469,9,FALSE) -> 猎户铜铃 | I11: =VLOOKUP(I1,RewardItemConfig!$B$138:$J$469,9,FALSE) -> 戍卫战甲 | J11: =VLOOKUP(J1,RewardItemConfig!$B$138:$J$469,9,FALSE) -> 猎户草帽 | K11: =VLOOKUP(K1,RewardItemConfig!$B$138:$J$469,9,FALSE) -> 猎户草鞋 | L11: =VLOOKUP(L1,RewardItemConfig!$B$138:$J$469,9,FALSE) -> 猎户指环 | M11: =VLOOKUP(M1,RewardItemConfig!$B$138:$J$469,9,FALSE) -> 猎户皮带
C12: =VLOOKUP(C2,RewardItemConfig!$B$138:$J$469,9,FALSE) -> 0.025绿色1 | D12: =VLOOKUP(D2,RewardItemConfig!$B$138:$J$469,9,FALSE) -> 猎户大斧 | E12: =VLOOKUP(E2,RewardItemConfig!$B$138:$J$469,9,FALSE) -> 猎户短剑 | F12: =VLOOKUP(F2,RewardItemConfig!$B$138:$J$469,9,FALSE) -> 猎户法杖 | G12: =VLOOKUP(G2,RewardItemConfig!$B$138:$J$469,9,FALSE) -> 猎户战刀 | H12: =VLOOKUP(H2,RewardItemConfig!$B$138:$J$469,9,FALSE) -> 猎户铜铃 | I12: =VLOOKUP(I2,RewardItemConfig!$B$138:$J$469,9,FALSE) -> 戍卫战甲 | J12: =VLOOKUP(J2,RewardItemConfig!$B$138:$J$469,9,FALSE) -> 猎户草帽 | K12: =VLOOKUP(K2,RewardItemConfig!$B$138:$J$469,9,FALSE) -> 猎户草鞋 | L12: =VLOOKUP(L2,RewardItemConfig!$B$138:$J$469,9,FALSE) -> 猎户指环 | M12: =VLOOKUP(M2,RewardItemConfig!$B$138:$J$469,9,FALSE) -> 猎户皮带
C13: =VLOOKUP(C3,RewardItemConfig!$B$138:$J$469,9,FALSE) -> 0.015绿色1 | D13: =VLOOKUP(D3,RewardItemConfig!$B$138:$J$469,9,FALSE) -> 猎户大斧 | E13: =VLOOKUP(E3,RewardItemConfig!$B$138:$J$469,9,FALSE) -> 猎户短剑 | F13: =VLOOKUP(F3,RewardItemConfig!$B$138:$J$469,9,FALSE) -> 猎户法杖 | G13: =VLOOKUP(G3,RewardItemConfig!$B$138:$J$469,9,FALSE) -> 猎户战刀 | H13: =VLOOKUP(H3,RewardItemConfig!$B$138:$J$469,9,FALSE) -> 猎户铜铃 | I13: =VLOOKUP(I3,RewardItemConfig!$B$138:$J$469,9,FALSE) -> 戍卫战甲 | J13: =VLOOKUP(J3,RewardItemConfig!$B$138:$J$469,9,FALSE) -> 猎户草帽 | K13: =VLOOKUP(K3,RewardItemConfig!$B$138:$J$469,9,FALSE) -> 猎户草鞋 | L13: =VLOOKUP(L3,RewardItemConfig!$B$138:$J$469,9,FALSE) -> 猎户指环 | M13: =VLOOKUP(M3,RewardItemConfig!$B$138:$J$469,9,FALSE) -> 猎户皮带
C14: =VLOOKUP(C4,RewardItemConfig!$B$138:$J$469,9,FALSE) -> 0.01绿色2 | D14: =VLOOKUP(D4,RewardItemConfig!$B$138:$J$469,9,FALSE) -> 兽骨大斧 | E14: =VLOOKUP(E4,RewardItemConfig!$B$138:$J$469,9,FALSE) -> 兽骨短剑 | F14: =VLOOKUP(F4,RewardItemConfig!$B$138:$J$469,9,FALSE) -> 兽骨法杖 | G14: =VLOOKUP(G4,RewardItemConfig!$B$138:$J$469,9,FALSE) -> 兽骨战刀 | H14: =VLOOKUP(H4,RewardItemConfig!$B$138:$J$469,9,FALSE) -> 兽骨铜铃 | I14: =VLOOKUP(I4,RewardItemConfig!$B$138:$J$469,9,FALSE) -> 硬木战甲 | J14: =VLOOKUP(J4,RewardItemConfig!$B$138:$J$469,9,FALSE) -> 兽皮兜帽 | K14: =VLOOKUP(K4,RewardItemConfig!$B$138:$J$469,9,FALSE) -> 兽皮皮靴 | L14: =VLOOKUP(L4,RewardItemConfig!$B$138:$J$469,9,FALSE) -> 兽皮指环 | M14: =VLOOKUP(M4,RewardItemConfig!$B$138:$J$469,9,FALSE) -> 兽皮束带
C15: =VLOOKUP(C5,RewardItemConfig!$B$138:$J$469,9,FALSE) -> 0.025绿色2 | D15: =VLOOKUP(D5,RewardItemConfig!$B$138:$J$469,9,FALSE) -> 兽骨大斧 | E15: =VLOOKUP(E5,RewardItemConfig!$B$138:$J$469,9,FALSE) -> 兽骨短剑 | F15: =VLOOKUP(F5,RewardItemConfig!$B$138:$J$469,9,FALSE) -> 兽骨法杖 | G15: =VLOOKUP(G5,RewardItemConfig!$B$138:$J$469,9,FALSE) -> 兽骨战刀 | H15: =VLOOKUP(H5,RewardItemConfig!$B$138:$J$469,9,FALSE) -> 兽骨铜铃 | I15: =VLOOKUP(I5,RewardItemConfig!$B$138:$J$469,9,FALSE) -> 硬木战甲 | J15: =VLOOKUP(J5,RewardItemConfig!$B$138:$J$469,9,FALSE) -> 兽皮兜帽 | K15: =VLOOKUP(K5,RewardItemConfig!$B$138:$J$469,9,FALSE) -> 兽皮皮靴 | L15: =VLOOKUP(L5,RewardItemConfig!$B$138:$J$469,9,FALSE) -> 兽皮指环 | M15: =VLOOKUP(M5,RewardItemConfig!$B$138:$J$469,9,FALSE) -> 兽皮束带
C16: =VLOOKUP(C6,RewardItemConfig!$B$138:$J$469,9,FALSE) -> 0.01绿色3 | D16: =VLOOKUP(D6,RewardItemConfig!$B$138:$J$469,9,FALSE) -> 坚固大斧 | E16: =VLOOKUP(E6,RewardItemConfig!$B$138:$J$469,9,FALSE) -> 坚固短剑 | F16: =VLOOKUP(F6,RewardItemConfig!$B$138:$J$469,9,FALSE) -> 坚固法杖 | G16: =VLOOKUP(G6,RewardItemConfig!$B$138:$J$469,9,FALSE) -> 坚固战刀 | H16: =VLOOKUP(H6,RewardItemConfig!$B$138:$J$469,9,FALSE) -> 坚固铜铃 | I16: =VLOOKUP(I6,RewardItemConfig!$B$138:$J$469,9,FALSE) -> 黑铁战甲 | J16: =VLOOKUP(J6,RewardItemConfig!$B$138:$J$469,9,FALSE) -> 坚固头盔 | K16: =VLOOKUP(K6,RewardItemConfig!$B$138:$J$469,9,FALSE) -> 坚固布鞋 | L16: =VLOOKUP(L6,RewardItemConfig!$B$138:$J$469,9,FALSE) -> 坚固手套 | M16: =VLOOKUP(M6,RewardItemConfig!$B$138:$J$469,9,FALSE) -> 坚固腰带
C17: =VLOOKUP(C7,RewardItemConfig!$B$138:$J$469,9,FALSE) -> 0.035绿色3 | D17: =VLOOKUP(D7,RewardItemConfig!$B$138:$J$469,9,FALSE) -> 坚固大斧 | E17: =VLOOKUP(E7,RewardItemConfig!$B$138:$J$469,9,FALSE) -> 坚固短剑 | F17: =VLOOKUP(F7,RewardItemConfig!$B$138:$J$469,9,FALSE) -> 坚固法杖 | G17: =VLOOKUP(G7,RewardItemConfig!$B$138:$J$469,9,FALSE) -> 坚固战刀 | H17: =VLOOKUP(H7,RewardItemConfig!$B$138:$J$469,9,FALSE) -> 坚固铜铃 | I17: =VLOOKUP(I7,RewardItemConfig!$B$138:$J$469,9,FALSE) -> 黑铁战甲 | J17: =VLOOKUP(J7,RewardItemConfig!$B$138:$J$469,9,FALSE) -> 坚固头盔 | K17: =VLOOKUP(K7,RewardItemConfig!$B$138:$J$469,9,FALSE) -> 坚固布鞋 | L17: =VLOOKUP(L7,RewardItemConfig!$B$138:$J$469,9,FALSE) -> 坚固手套 | M17: =VLOOKUP(M7,RewardItemConfig!$B$138:$J$469,9,FALSE) -> 坚固腰带
C21: =VLOOKUP(C1,RewardItemConfig!$B$138:$J$469,3,FALSE) -> 28571 | D21: =VLOOKUP(D1,RewardItemConfig!$B$138:$J$469,3,FALSE) -> 100 | E21: =VLOOKUP(E1,RewardItemConfig!$B$138:$J$469,3,FALSE) -> 0 | F21: =VLOOKUP(F1,RewardItemConfig!$B$138:$J$469,3,FALSE) -> 0 | G21: =VLOOKUP(G1,RewardItemConfig!$B$138:$J$469,3,FALSE) -> 0 | H21: =VLOOKUP(H1,RewardItemConfig!$B$138:$J$469,3,FALSE) -> 0 | I21: =VLOOKUP(I1,RewardItemConfig!$B$138:$J$469,3,FALSE) -> 100 | J21: =VLOOKUP(J1,RewardItemConfig!$B$138:$J$469,3,FALSE) -> 100 | K21: =VLOOKUP(K1,RewardItemConfig!$B$138:$J$469,3,FALSE) -> 100 | L21: =VLOOKUP(L1,RewardItemConfig!$B$138:$J$469,3,FALSE) -> 0 | M21: =VLOOKUP(M1,RewardItemConfig!$B$138:$J$469,3,FALSE) -> 0 | O21: =400/28971 -> 0.01380691036
C22: =VLOOKUP(C2,RewardItemConfig!$B$138:$J$469,3,FALSE) -> 40000 | D22: =VLOOKUP(D2,RewardItemConfig!$B$138:$J$469,3,FALSE) -> 100 | E22: =VLOOKUP(E2,RewardItemConfig!$B$138:$J$469,3,FALSE) -> 0 | F22: =VLOOKUP(F2,RewardItemConfig!$B$138:$J$469,3,FALSE) -> 0 | G22: =VLOOKUP(G2,RewardItemConfig!$B$138:$J$469,3,FALSE) -> 0 | H22: =VLOOKUP(H2,RewardItemConfig!$B$138:$J$469,3,FALSE) -> 0 | I22: =VLOOKUP(I2,RewardItemConfig!$B$138:$J$469,3,FALSE) -> 100 | J22: =VLOOKUP(J2,RewardItemConfig!$B$138:$J$469,3,FALSE) -> 100 | K22: =VLOOKUP(K2,RewardItemConfig!$B$138:$J$469,3,FALSE) -> 100 | L22: =VLOOKUP(L2,RewardItemConfig!$B$138:$J$469,3,FALSE) -> 0 | M22: =VLOOKUP(M2,RewardItemConfig!$B$138:$J$469,3,FALSE) -> 0
C23: =VLOOKUP(C3,RewardItemConfig!$B$138:$J$469,3,FALSE) -> 66667 | D23: =VLOOKUP(D3,RewardItemConfig!$B$138:$J$469,3,FALSE) -> 100 | E23: =VLOOKUP(E3,RewardItemConfig!$B$138:$J$469,3,FALSE) -> 0 | F23: =VLOOKUP(F3,RewardItemConfig!$B$138:$J$469,3,FALSE) -> 0 | G23: =VLOOKUP(G3,RewardItemConfig!$B$138:$J$469,3,FALSE) -> 0 | H23: =VLOOKUP(H3,RewardItemConfig!$B$138:$J$469,3,FALSE) -> 0 | I23: =VLOOKUP(I3,RewardItemConfig!$B$138:$J$469,3,FALSE) -> 100 | J23: =VLOOKUP(J3,RewardItemConfig!$B$138:$J$469,3,FALSE) -> 100 | K23: =VLOOKUP(K3,RewardItemConfig!$B$138:$J$469,3,FALSE) -> 100 | L23: =VLOOKUP(L3,RewardItemConfig!$B$138:$J$469,3,FALSE) -> 0 | M23: =VLOOKUP(M3,RewardItemConfig!$B$138:$J$469,3,FALSE) -> 0
C24: =VLOOKUP(C4,RewardItemConfig!$B$138:$J$469,3,FALSE) -> 100000 | D24: =VLOOKUP(D4,RewardItemConfig!$B$138:$J$469,3,FALSE) -> 100 | E24: =VLOOKUP(E4,RewardItemConfig!$B$138:$J$469,3,FALSE) -> 0 | F24: =VLOOKUP(F4,RewardItemConfig!$B$138:$J$469,3,FALSE) -> 0 | G24: =VLOOKUP(G4,RewardItemConfig!$B$138:$J$469,3,FALSE) -> 0 | H24: =VLOOKUP(H4,RewardItemConfig!$B$138:$J$469,3,FALSE) -> 0 | I24: =VLOOKUP(I4,RewardItemConfig!$B$138:$J$469,3,FALSE) -> 100 | J24: =VLOOKUP(J4,RewardItemConfig!$B$138:$J$469,3,FALSE) -> 100 | K24: =VLOOKUP(K4,RewardItemConfig!$B$138:$J$469,3,FALSE) -> 100 | L24: =VLOOKUP(L4,RewardItemConfig!$B$138:$J$469,3,FALSE) -> 0 | M24: =VLOOKUP(M4,RewardItemConfig!$B$138:$J$469,3,FALSE) -> 0
C25: =VLOOKUP(C5,RewardItemConfig!$B$138:$J$469,3,FALSE) -> 40000 | D25: =VLOOKUP(D5,RewardItemConfig!$B$138:$J$469,3,FALSE) -> 100 | E25: =VLOOKUP(E5,RewardItemConfig!$B$138:$J$469,3,FALSE) -> 0 | F25: =VLOOKUP(F5,RewardItemConfig!$B$138:$J$469,3,FALSE) -> 0 | G25: =VLOOKUP(G5,RewardItemConfig!$B$138:$J$469,3,FALSE) -> 0 | H25: =VLOOKUP(H5,RewardItemConfig!$B$138:$J$469,3,FALSE) -> 0 | I25: =VLOOKUP(I5,RewardItemConfig!$B$138:$J$469,3,FALSE) -> 100 | J25: =VLOOKUP(J5,RewardItemConfig!$B$138:$J$469,3,FALSE) -> 100 | K25: =VLOOKUP(K5,RewardItemConfig!$B$138:$J$469,3,FALSE) -> 100 | L25: =VLOOKUP(L5,RewardItemConfig!$B$138:$J$469,3,FALSE) -> 0 | M25: =VLOOKUP(M5,RewardItemConfig!$B$138:$J$469,3,FALSE) -> 0
C26: =VLOOKUP(C6,RewardItemConfig!$B$138:$J$469,3,FALSE) -> 100000 | D26: =VLOOKUP(D6,RewardItemConfig!$B$138:$J$469,3,FALSE) -> 0 | E26: =VLOOKUP(E6,RewardItemConfig!$B$138:$J$469,3,FALSE) -> 0 | F26: =VLOOKUP(F6,RewardItemConfig!$B$138:$J$469,3,FALSE) -> 0 | G26: =VLOOKUP(G6,RewardItemConfig!$B$138:$J$469,3,FALSE) -> 0 | H26: =VLOOKUP(H6,RewardItemConfig!$B$138:$J$469,3,FALSE) -> 0 | I26: =VLOOKUP(I6,RewardItemConfig!$B$138:$J$469,3,FALSE) -> 0 | J26: =VLOOKUP(J6,RewardItemConfig!$B$138:$J$469,3,FALSE) -> 0 | K26: =VLOOKUP(K6,RewardItemConfig!$B$138:$J$469,3,FALSE) -> 0 | L26: =VLOOKUP(L6,RewardItemConfig!$B$138:$J$469,3,FALSE) -> 0 | M26: =VLOOKUP(M6,RewardItemConfig!$B$138:$J$469,3,FALSE) -> 0
C27: =VLOOKUP(C7,RewardItemConfig!$B$138:$J$469,3,FALSE) -> 28571 | D27: =VLOOKUP(D7,RewardItemConfig!$B$138:$J$469,3,FALSE) -> 0 | E27: =VLOOKUP(E7,RewardItemConfig!$B$138:$J$469,3,FALSE) -> 0 | F27: =VLOOKUP(F7,RewardItemConfig!$B$138:$J$469,3,FALSE) -> 0 | G27: =VLOOKUP(G7,RewardItemConfig!$B$138:$J$469,3,FALSE) -> 0 | H27: =VLOOKUP(H7,RewardItemConfig!$B$138:$J$469,3,FALSE) -> 0 | I27: =VLOOKUP(I7,RewardItemConfig!$B$138:$J$469,3,FALSE) -> 0 | J27: =VLOOKUP(J7,RewardItemConfig!$B$138:$J$469,3,FALSE) -> 0 | K27: =VLOOKUP(K7,RewardItemConfig!$B$138:$J$469,3,FALSE) -> 0 | L27: =VLOOKUP(L7,RewardItemConfig!$B$138:$J$469,3,FALSE) -> 0 | M27: =VLOOKUP(M7,RewardItemConfig!$B$138:$J$469,3,FALSE) -> 0
